fUSD/lending_fUSD_20250117
["ID","MTS","AMOUNT","RATE_DAILY","PERIOD"]
[349274816,1737089445941,-312.9309025,0.00032145,3]
[349274817,1737089445950,-500.0,0.00032145,3]
[349274818,1737089445959,-500.0,0.00032145,3]
[349274819,1737089445969,-500.0,0.00032145,3]
[349274820,1737089445978,-500.0,0.00032145,3]
[349274821,1737089445988,-500.0,0.00032145,3]
[349274822,1737089445998,-500.0,0.00032145,3]
[349274823,1737089446007,-500.0,0.00032145,3]
[349274824,1737089446018,-500.0,0.00032145,3]
[349274825,1737089446028,-500.0,0.00032145,3]
[349274826,1737089446037,-527.46,0.00032145,3]
[349274828,1737089446047,-500.0,0.00032145,3]
[349274830,1737089446057,-186.13804819,0.00032145,3]
[349274832,1737089446067,-527.46,0.00032145,3]
[349274833,1737089446077,-527.46,0.00032145,3]
[349274834,1737089446087,-617.41,0.00032145,3]
[349274835,1737089446097,-617.41,0.00032145,3]
[349274836,1737089446107,-617.41,0.00032145,3]
[349274837,1737089446116,-617.41,0.00032145,3]
[349274838,1737089446126,-617.41,0.00032145,3]
[349274839,1737089446136,-527.46,0.00032145,3]
[349274840,1737089446146,-617.41,0.00032145,3]
[349274841,1737089446155,-617.41,0.00032145,3]
[349274842,1737089446165,-617.41,0.00032145,3]
[349274843,1737089446174,-527.46,0.00032145,3]
[349274844,1737089446184,-617.41,0.00032145,3]
[349274845,1737089446193,-617.41,0.00032145,3]
[349274846,1737089446203,-617.41,0.00032145,3]
[349274847,1737089446213,-617.41,0.00032145,3]
[349274848,1737089446224,-527.46,0.00032145,3]
[349274849,1737089446234,-617.41,0.00032145,3]
[349274850,1737089446244,-617.41,0.00032145,3]
[349274851,1737089446253,-617.41,0.00032145,3]
[349274852,1737089446263,-527.46,0.00032145,3]
[349274853,1737089446273,-617.41,0.00032145,3]
[349274854,1737089446283,-617.41,0.00032145,3]
[349274855,1737089446293,-527.46,0.00032145,3]
[349274856,1737089446303,-617.41,0.00032145,3]
[349274857,1737089446314,-617.41,0.00032145,3]
[349274858,1737089446324,-617.41,0.00032145,3]
[349274859,1737089446334,-527.46,0.00032145,3]
[349274860,1737089446344,-617.41,0.00032145,3]
[349274861,1737089446355,-617.41,0.00032145,3]
[349274862,1737089446365,-617.4891486,0.00032145,3]
[349274863,1737089446375,-527.46,0.00032145,3]
[349274864,1737089446384,-527.46,0.00032145,3]
[349274865,1737089446395,-527.46,0.00032145,3]
[349274866,1737089446404,-527.46,0.00032145,3]
[349274867,1737089446414,-500.0,0.00032145,3]
[349274868,1737089446424,-500.0,0.00032145,3]
[349274869,1737089446434,-500.0,0.00032145,3]
[349274870,1737089446444,-527.46,0.00032145,3]
[349274871,1737089446454,-500.0,0.00032145,3]
[349274872,1737089446464,-500.0,0.00032145,3]
[349274873,1737089446473,-527.46,0.00032145,3]
[349274874,1737089446483,-500.0,0.00032145,3]
[349274875,1737089446492,-500.0,0.00032145,3]
[349274876,1737089446501,-500.0,0.00032145,3]
[349274877,1737089446511,-500.0,0.00032145,3]
[349274878,1737089446521,-500.0,0.00032145,3]
[349274879,1737089446530,-527.46,0.00032145,3]
[349274880,1737089446541,-500.0,0.00032145,3]
[349274881,1737089446550,-500.0,0.00032145,3]
[349274882,1737089446560,-500.0,0.00032145,3]
[349274883,1737089446575,-304.6837016,0.00032145,3]
[349274884,1737089446584,-527.46,0.00032145,3]
[349274885,1737089446594,-527.46,0.00032145,3]
[349274886,1737089446603,-527.46,0.00032145,3]
[349274887,1737089446614,-527.46,0.00032145,3]
[349274888,1737089446623,-540.41,0.00032145,3]
[349274889,1737089446633,-540.41,0.00032145,3]
[349274890,1737089446643,-540.41,0.00032145,3]
[349274891,1737089446653,-527.46,0.00032145,3]
[349274892,1737089446662,-540.41,0.00032145,3]
[349274893,1737089446671,-540.41,0.00032145,3]
[349274894,1737089446681,-527.46,0.00032145,3]
[349274895,1737089446690,-540.41,0.00032145,3]
[349274896,1737089446699,-540.41,0.00032145,3]
[349274897,1737089446708,-540.41,0.00032145,3]
[349274898,1737089446718,-540.41,0.00032145,3]
[349274899,1737089446727,-527.46,0.00032145,3]
[349274900,1737089446737,-540.41,0.00032145,3]
[349274901,1737089446746,-540.41,0.00032145,3]
[349274902,1737089446755,-540.41,0.00032145,3]
[349274903,1737089446764,-540.41,0.00032145,3]
[349274904,1737089446775,-527.57032209,0.00032145,3]
[349274905,1737089446784,-540.41,0.00032145,3]
[349274906,1737089446793,-540.41,0.00032145,3]
[349274907,1737089446804,-540.41,0.00032145,3]
[349274908,1737089446815,-540.41,0.00032145,3]
[349274909,1737089446823,-540.41,0.00032145,3]
[349274910,1737089446833,-540.41,0.00032145,3]
[349274911,1737089446842,-540.41,0.00032145,3]
[349274912,1737089446852,-540.41,0.00032145,3]
[349274913,1737089446861,-540.41,0.00032145,3]
[349274914,1737089446872,-540.49167442,0.00032145,3]
[349274915,1737089446883,-500.0,0.00032145,3]
[349274916,1737089446894,-500.0,0.00032145,3]
[349274917,1737089446904,-195.91242726,0.00032145,3]
[349274918,1737089446916,-500.0,0.00032145,3]
[349274919,1737089446927,-500.0,0.00032145,3]
[349274920,1737089446935,-9550.50416787,0.00032146,5]
[349274921,1737089447036,-500.0,0.00032144,3]
[349274922,1737089447045,-500.0,0.00032145,3]
[349274923,1737089447054,-500.0,0.00032145,3]
[349274924,1737089447064,-285.28735792,0.00032145,3]
[349274925,1737089447072,-6165.99822737,0.00032146,5]
[349274926,1737089447083,-334.42568458,0.00032146,5]
[349274927,1737089447093,-11194.3481508,0.00032146,5]
[349274928,1737089447104,-11619.43475905,0.00032146,5]
[349274929,1737090102755,155.71,0.00010137,2]
[349274933,1737090446140,-600.0,0.00024,8]
[349274934,1737090446164,-1080.65660625,0.000241,8]
[349274935,1737090451693,302.0,0.00016,60]
[349274936,1737090549097,-119.34339375,0.000241,8]
[349274937,1737090549119,-244.69409626,0.000241,2]
[349274938,1737090549141,-244.69409625,0.0002415,2]
[349274939,1737090549161,-244.69409625,0.000242,2]
[349274940,1737090549181,-3301.58586349,0.000242,2]
[349274950,1737090631838,-1900.0,0.000242,8]
[349274951,1737090631849,-2500.0,0.000243,8]
[349274952,1737090631858,-300.0,0.00024399,2]
[349274953,1737090631867,-3200.0,0.000244,8]
[349274954,1737090631876,-600.0,0.000245,8]
[349274955,1737090631888,-4957.7356219,0.000245,2]
[349274956,1737090631897,-600.0,0.000246,8]
[349274957,1737090631909,-600.0,0.000247,9]
[349274958,1737090631918,-600.0,0.000248,9]
[349274959,1737090631929,-230.1598621,0.00024899,2]
[349274960,1737090631939,-371.0,0.00024899,2]
[349274961,1737090631949,-1129.0,0.000249,9]
[349274962,1737090631958,-946.89227376,0.000249,2]
[349274963,1737090631967,-10294.25249734,0.000249,2]
[349274964,1737090631977,-16612.51207393,0.000249,2]
[349274965,1737090631986,-4131.47581056,0.000249,2]
[349274966,1737090631996,-181.84343625,0.000249,2]
[349274967,1737090632006,-549.84,0.00024924,2]
[349274968,1737090632016,-381.96,0.00024925,2]
[349274969,1737090632026,-500.0,0.00024932,2]
[349274970,1737090632036,-1033.0,0.00024959,2]
[349274971,1737090632048,-500.0,0.00024973,2]
[349274972,1737090632058,-1063.44836008,0.00024999,10]
[349274973,1737090632067,-500.0,0.00024999,2]
[349274974,1737090632077,-500.0,0.00024999,2]
[349274975,1737090632089,-501.05505135,0.00024999,2]
[349274976,1737090632100,-500.0,0.00024999,2]
[349274977,1737090632110,-500.0,0.00024999,2]
[349274978,1737090632119,-500.0,0.00024999,2]
[349274979,1737090632128,-354.64156773,0.00024999,2]
[349274980,1737090632138,-280.38808493,0.00024999,2]
[349274981,1737090632147,-434.89731159,0.00024999,2]
[349274982,1737090632157,-500.0,0.00024999,2]
[349274983,1737090632167,-1042.76118497,0.00024999,10]
[349274985,1737090632176,-17889.60673961,0.00025,15]
[349274986,1737090632192,-17941.05596346,0.00025,15]
[349274987,1737090632203,-22935.99296211,0.00025,15]
[349274988,1737090632214,-344.317,0.00025,15]
[349274990,1737090632233,-921.4678786,0.00025,15]
[349274991,1737090632265,-15019.12555874,0.00025,15]
[349274992,1737090632276,-685.05424735,0.00025,15]
[349275010,1737090637722,-426.93704881,0.00025,15]
[349275011,1737090637738,-182110.61242542,0.00025,15]
[349275012,1737090637751,-10697.20274922,0.00025,15]
[349275013,1737090637763,-4884.83997039,0.00025,15]
[349275014,1737090637775,-4067.89171202,0.00025,15]
[349275015,1737090637788,-740.9051002,0.00025,15]
[349275016,1737090637887,-1943.46898318,0.00025,15]
[349275017,1737090637943,-7095.87462594,0.00025,15]
[349275018,1737090638000,-4924756.2663519,0.00025,15]
[349275028,1737090639883,-11222.5743984,0.00025,15]
[349275029,1737090639941,-500.0,0.00025,15]
[349275030,1737090639953,-5069.495728,0.00025,15]
[349275031,1737090639998,-1130.36314735,0.00025,15]
[349275032,1737090640057,-3346.68896,0.00025,15]
[349275033,1737090640069,-1099.28247923,0.00025,15]
[349275034,1737090640115,-571.33144562,0.00025,15]
[349275035,1737090640281,-1000.0,0.00025,15]
[349275036,1737090640292,-523.3634122,0.00025,15]
[349275107,1737090642716,-165.70471759,0.000249,2]
[349275108,1737090642728,-37633.15140339,0.00025,15]
[349275109,1737090642741,-75972.03811,0.00025,15]
[349275110,1737090642753,-262.47,0.00025,15]
[349275111,1737090642770,-445.62002,0.00025,15]
[349275113,1737090642827,-444.75380007,0.00025,15]
[349275114,1737090642841,-12547.94997507,0.00025,15]
[349275115,1737090642993,-681.83583395,0.00025,15]
[349275116,1737090643008,-314248.41350409,0.00025,15]
[349275122,1737090645748,-4707.61349222,0.00025,15]
[349275123,1737090645760,-6850.7626875,0.00025,15]
[349275124,1737090645772,-11259.25591169,0.00025,15]
[349275125,1737090645783,-17450.457842,0.00025,15]
[349275126,1737090645805,-3024.6809604,0.00025,15]
[349275127,1737090645818,-2804.267864,0.00025,15]
[349275128,1737090645863,-2515.24707033,0.00025,15]
[349275129,1737090645918,-267.87714921,0.00025,15]
[349275130,1737090645930,-19894.3241437,0.00025,15]
[349275131,1737090645974,-473.90590202,0.00025,15]
[349275132,1737090645986,-1457.571224,0.00025,15]
[349275133,1737090645999,-3290.06,0.00025,15]
[349275134,1737090646012,-4561.82500075,0.00025,15]
[349275135,1737090646040,-3089.9999995,0.00025,15]
[349275136,1737090646051,-1683.47539961,0.00025,15]
[349275141,1737090986663,153.95,0.00010137,2]
[349275143,1737091002878,3000.0,0.00010137,2]
[349275145,1737091050967,442.66949,0.00010137,2]
[349275146,1737091093675,2500.0,0.00010137,2]
[349275147,1737091136474,368.89124,0.00010137,2]
[349275148,1737091179339,2083.33333,0.00010137,2]
[349275149,1737091222072,307.40937,0.00010137,2]
[349275150,1737091264870,1736.11111,0.00010137,2]
[349275151,1737091324524,256.17447,0.00010137,2]
[349275152,1737091367297,1446.75926,0.00010137,2]
[349275153,1737091410267,213.47873,0.00010137,2]
[349275154,1737091452929,1205.63271,0.00010137,2]
[349275155,1737091495749,177.89894,0.00010137,2]
[349275156,1737091538548,1004.69393,0.00010137,2]
[349275157,1737091581330,177.89894,0.00010137,2]
[349275158,1737091610135,-164.68,0.00012329,2]
[349275159,1737091610157,-52.22959565,0.00014888,2]
[349275160,1737091626092,-1400.98735717,0.00014888,2]
[349275161,1737091626115,-98.928411,0.00014888,2]
[349275162,1737091682141,1927.4284287,0.00010999,2]
[349275173,1737091760114,-738.316529,0.00014888,2]
[349275174,1737091760135,-837.24494,0.00019888,2]
[349275175,1737091760155,-159.15,0.00019896,2]
[349275176,1737091760176,-586.75,0.00021879,2]
[349275177,1737091760198,-300.0,0.00023649,2]
[349275178,1737091760218,-14726.06482698,0.0002365,2]
[349275191,1737091831962,-2298.37517302,0.0002365,2]
[349275192,1737091831972,-310.36,0.00023687,2]
[349275194,1737091831982,-500.0,0.00023709,2]
[349275197,1737091831991,-200.0,0.00023714,2]
[349275198,1737091832002,-178.47,0.00023714,2]
[349275199,1737091832012,-250.0,0.00023726,2]
[349275200,1737091832021,-3924.78,0.00023736,2]
[349275201,1737091832030,-646.94,0.00023797,2]
[349275202,1737091832040,-243.11,0.00023821,2]
[349275203,1737091832050,-408.16840228,0.00023906,2]
[349275204,1737091832070,-1026.73024974,0.00023906,2]
[349275205,1737091832090,-254.37134798,0.00023906,2]
[349275206,1737091832101,-49.62865202,0.00023937,120]
[349275207,1737091832143,-412.5009,0.00023937,120]
[349275208,1737091832154,-556.11960545,0.00023937,120]
[349275209,1737091832165,-338.43084253,0.00023937,120]
[349275210,1737091832174,-6.34915737,0.0002403,2]
[349275211,1737091832185,-431.97084263,0.0002403,2]
[349275212,1737091832194,-28.76915737,0.00024052,2]
[349275213,1737091832261,-413.33084263,0.00024052,2]
[349275214,1737091832271,-185.87,0.00024052,2]
[349275215,1737091832282,-412.5697,0.000241,2]
[349275216,1737091832295,-200.0,0.00024121,2]
[349275217,1737091832305,-287.01895465,0.00024143,2]
[349275218,1737091832316,-299.73104535,0.00024143,2]
[349275219,1737091832327,-882.97987178,0.00024196,2]
[349275220,1737091832338,-117.02012822,0.00024196,2]
[349275221,1737091832347,-153.95,0.00024231,2]
[349275222,1737091832357,-250.0,0.00024244,2]
[349275223,1737091832367,-123.33936627,0.00024298,2]
[349275224,1737091832388,-126.66063373,0.00024298,2]
[349275225,1737091832398,-170.52,0.00024405,2]
[349275226,1737091832407,-173.91,0.00024624,2]
[349275227,1737091832418,-300.0,0.000247,2]
[349275228,1737091832427,-2685.0,0.0002475,2]
[349275229,1737091832437,-542.41956668,0.00024792,2]
[349275230,1737091832446,-500.0,0.00024822,2]
[349275231,1737091832457,-150.0,0.00024822,2]
[349275232,1737091832466,-2267.18440822,0.00024849,2]
[349275233,1737091832478,-1201.96621571,0.00024849,2]
[349275252,1737091837879,-361.37125032,0.00024849,2]
[349275253,1737091837938,-1969.47812575,0.00024849,2]
[349275254,1737091837948,-177.89894,0.00024849,2]
[349275255,1737091837958,-450.23793785,0.00024856,2]
[349275256,1737091837997,-94.47285948,0.00024856,2]
[349275257,1737091838006,-640.68079571,0.00024857,2]
[349275258,1737091838018,-5159.31920429,0.00024857,2]
[349275259,1737091838027,-5800.0,0.00024866,2]
[349275260,1737091838037,-202.06134771,0.0002487,2]
[349275261,1737091838046,-5800.0,0.00024875,2]
[349275262,1737091838056,-5800.0,0.00024883,2]
[349275263,1737091838066,-301.50478601,0.00024885,2]
[349275264,1737091838075,-5800.0,0.00024892,2]
[349275265,1737091838084,-5800.0,0.000249,2]
[349275266,1737091838093,-1829.59536917,0.000249,2]
[349275267,1737091838103,-4087.31361897,0.000249,2]
[349275268,1737091838114,-217.86942022,0.000249,2]
[349275269,1737091838124,-503.9800546,0.000249,2]
[349275270,1737091838134,-614.34843162,0.000249,2]
[349275271,1737091838145,-202.0613477,0.000249,2]
[349275272,1737091838155,-187.58,0.00024905,2]
[349275273,1737091838165,-500.0,0.00024932,2]
[349275274,1737091838175,-92185.0,0.00024959,2]
[349275275,1737091838186,-150.5,0.0002497,30]
[349275276,1737091838197,-572.80081496,0.00024973,2]
[349275277,1737091838207,-500.64404719,0.00024973,2]
[349275278,1737091838218,-151.93763829,0.00024973,2]
[349275279,1737091838227,-506.97139594,0.00024973,2]
[349275280,1737091838237,-150.5,0.0002498,30]
[349275281,1737091838247,-150.5,0.0002499,30]
[349275282,1737091838257,-2381.226,0.00024999,8]
[349275283,1737091838267,-157.825,0.00024999,8]
[349275284,1737091838276,-500.0,0.00024999,2]
[349275285,1737091838291,-3603.99136286,0.00024999,2]
[349275286,1737091838300,-3687.0,0.00024999,2]
[349275288,1737091838310,-5309455.61394424,0.00025,15]
[349275289,1737091838327,-3518.27166772,0.00025,15]
[349275290,1737091838339,-77419.11738521,0.00025,15]
[349275291,1737091838351,-465.401043,0.00025,15]
[349275292,1737091838364,-393.01182328,0.00025,15]
[349275295,1737091838386,-314.03857351,0.00025,15]
[349275296,1737091838398,-1589.07529685,0.00025,15]
[349275297,1737091838412,-1980.11545719,0.00025,15]
[349275298,1737091838423,-2738.46758266,0.00025,15]
[349275305,1737091840258,-1272.5779999,0.00025,15]
[349275306,1737091840274,-248686.64119038,0.00025,15]
[349275307,1737091840296,-405.65,0.00025,15]
[349275308,1737091840308,-335.0299999,0.00025,15]
[349275309,1737091840319,-333.9150005,0.00025,15]
[349275310,1737091840491,-399.433,0.00025,15]
[349275311,1737091840503,-513.891,0.00025,15]
[349275312,1737091840514,-737.09541061,0.00025,15]
[349275313,1737091840530,-28019.2140588,0.00025,15]
[349275314,1737091840540,-1055.64999968,0.00025,15]
[349275315,1737091840552,-19591.28334223,0.00025,15]
[349275316,1737091840563,-401.44214624,0.00025,15]
[349275317,1737091840575,-716.93871787,0.00025,15]
[349275318,1737091840586,-1926.71777441,0.00025,15]
[349275319,1737091840597,-6008.27492,0.00025,15]
[349275320,1737091840608,-6714.8722951,0.00025,15]
[349275321,1737091840629,-1362.39004,0.00025,15]
[349275322,1737091840645,-1406.15000003,0.00025,15]
[349275333,1737091842957,-4855.5,0.00025,15]
[349275335,1737091842969,-682.36978236,0.00025,15]
[349275336,1737091842980,-30579.78,0.00025,15]
[349275338,1737091842992,-50367.40820464,0.00025,15]
[349275340,1737091843004,-49260.0,0.00025,15]
[349275342,1737091843030,-6397.3587318,0.00025,15]
[349275343,1737091843042,-832.22210052,0.00025,15]
[349275344,1737091843093,-992.64931873,0.00025,15]
[349275345,1737091843105,-1104.77514956,0.00025,15]
[349275346,1737091843117,-362679.80232517,0.00025,15]
[349275347,1737091843129,-1192.20706,0.00025,15]
[349275348,1737091843141,-1217.57075148,0.00025,15]
[349275349,1737091843155,-1273.949995,0.00025,15]
[349275350,1737091843167,-1247.33195353,0.00025,15]
[349275351,1737091843182,-531794.62001123,0.00025,15]
[349275352,1737091843193,-365.7149734,0.00025,15]
[349275353,1737091843204,-419.54127684,0.00025,15]
[349275354,1737091843216,-620.2578863,0.00025,15]
[349275355,1737091843228,-13939.0,0.00025,15]
[349275356,1737091843310,-24.10106616,0.00025,15]
[349275357,1737091843322,-4836.0,0.00025,15]
[349275358,1737091843334,-9018.59284828,0.00025,15]
[349275362,1737091845947,-29392.22616108,0.00025,15]
[349275363,1737091846063,-2789.0,0.00025,15]
[349275364,1737091846181,-52601.774,0.00025,15]
[349275365,1737091846192,-363456.9374067,0.00025,15]
[349275366,1737091846300,-269.24525594,0.00025,15]
[349275367,1737091846312,-2258.45940284,0.00025,15]
[349275368,1737091846323,-485.62961538,0.00025,15]
[349275369,1737091846364,-3290.06,0.00025,15]
[349275373,1737091898311,207.82,0.00010137,2]
[349275381,1737092414170,-150.5,0.0002497,30]
[349275382,1737092414192,-150.5,0.0002498,30]
[349275383,1737092414213,-150.5,0.0002499,30]
[349275384,1737092414234,-184.45057839,0.00025,30]
[349275388,1737092474832,8199.0,0.00012,2]
[349275393,1737092817327,-207.82,0.00016813,2]
[349275394,1737092817349,-500.0,0.00021178,2]
[349275395,1737092817373,-300.0,0.00021999,2]
[349275396,1737092817395,-10000.0,0.00022,2]
[349275397,1737092817419,-552.65,0.00022053,2]
[349275398,1737092817442,-207.82,0.0002349,2]
[349275399,1737092817467,-150.0,0.0002389,2]
[349275400,1737092817739,-420.0,0.00023906,2]
[349275401,1737092817763,-200.0,0.00023951,2]
[349275402,1737092817785,-323.47,0.00023996,2]
[349275403,1737092817807,-1000.0,0.00024044,2]
[349275404,1737092817829,-39694.38195328,0.00024315,2]
[349275405,1737092817851,-552.65,0.00024317,2]
[349275406,1737092817873,-506.97139594,0.00024473,2]
[349275407,1737092817896,-151.93763829,0.00024473,2]
[349275408,1737092817920,-150.0,0.00024499,2]
[349275409,1737092817942,-206.0712853,0.00024499,2]
[349275410,1737092817964,-1308055.0,0.000245,2]
[349275411,1737092817988,-454.97,0.00024647,2]
[349275412,1737092818009,-250.0,0.00024647,2]
[349275413,1737092818031,-542.41956668,0.000247,2]
[349275414,1737092818054,-7701.4299062,0.00024764,2]
[349275415,1737092818081,-2381.226,0.00024799,8]
[349275416,1737092818104,-157.825,0.00024799,8]
[349275417,1737092818125,-25000.0,0.000248,3]
[349275418,1737092818148,-73040.02480264,0.000248,2]
[349275419,1737092818169,-153.58894663,0.000248,2]
[349275420,1737092818193,-202.06134771,0.000248,2]
[349275421,1737092818217,-5800.0,0.00024883,2]
[349275422,1737092818239,-5800.0,0.00024892,2]
[349275423,1737092818261,-25000.0,0.000249,15]
[349275424,1737092818285,-5800.0,0.000249,2]
[349275425,1737092818308,-217.86942022,0.000249,2]
[349275426,1737092818330,-1829.59536917,0.000249,2]
[349275427,1737092818353,-202.0613477,0.000249,2]
[349275428,1737092818374,-3189.72208022,0.000249,2]
[349275429,1737092818396,-614.34843162,0.000249,2]
[349275430,1737092818417,-172.433161,0.000249,2]
[349275431,1737092818438,-4909.68426198,0.000249,2]
[349275432,1737092818461,-855.72183692,0.000249,2]
[349275433,1737092818483,-500.0,0.00024932,2]
[349275434,1737092818504,-202.51230629,0.00024948,10]
[349275435,1737092818526,-61843.73394221,0.00024959,2]
[349275436,1737092826135,-706.89926257,0.00021953,2]
[349275437,1737092826157,-301.50478601,0.00024944,2]
[349275438,1737092826179,-343.00011776,0.00024959,2]
[349275439,1737092897392,154.62,0.00010137,2]
[349275441,1737092956109,-167.56,0.00019444,2]
[349275442,1737092956131,-490.92667637,0.00024,2]
[349275443,1737092963156,-178.76706923,0.00024,2]
[349275449,1737093032172,-1925.13,0.00024,2]
[349275450,1737093032185,-1517.51140779,0.00024,2]
[349275451,1737093032195,-173.91,0.00024215,2]
[349275452,1737093032204,-250.0,0.00024215,2]
[349275453,1737093032213,-201.05641383,0.0002487,2]
[349275454,1737093032223,-2988.85483836,0.00024899,2]
[349275455,1737093032238,-3799.37093081,0.00024899,2]
[349275456,1737093032291,-4793.7,0.00024899,2]
[349275457,1737093032303,-5369.67348041,0.00024899,2]
[349275458,1737093032312,-300.0,0.00024899,2]
[349275459,1737093032321,-18559.52548056,0.000249,2]
[349275460,1737093032332,-1185.71111757,0.000249,2]
[349275461,1737093032343,-1218.05,0.000249,2]
[349275462,1737093032355,-837.7009413,0.000249,2]
[349275463,1737093032371,-185.65507836,0.000249,2]
[349275464,1737093032381,-150.0,0.00024958,2]
[349275465,1737093032390,-3560.0517745,0.00024959,2]
[349275466,1737093032402,-1407.06112803,0.00024959,2]
[349275467,1737093032413,-947.31015434,0.00024959,2]
[349275468,1737093032425,-24083.84288316,0.00024959,2]
[349275469,1737093032436,-1960.5,0.0002496,2]
[349275470,1737093032445,-150.5,0.0002497,30]
[349275471,1737093032454,-572.80081496,0.00024973,2]
[349275472,1737093032464,-500.64404719,0.00024973,2]
[349275473,1737093032473,-539.17127512,0.00024973,2]
[349275474,1737093032483,-151.8132122,0.00024973,2]
[349275475,1737093032492,-151.93763829,0.00024973,2]
[349275476,1737093032502,-150.5,0.0002498,30]
[349275477,1737093032511,-150.5,0.0002499,30]
[349275478,1737093032521,-152.98,0.0002499,120]
[349275479,1737093032531,-3645.0,0.0002499,2]
[349275480,1737093032541,-206.0712853,0.00024997,2]
[349275481,1737093032551,-30641.256696,0.00024998,30]
[349275482,1737093032562,-592.36206145,0.00024998,30]
[349275483,1737093032574,-1777.19374894,0.00024998,30]
[349275484,1737093032592,-286061.68159904,0.00024998,30]
[349275485,1737093032603,-94050.0,0.00024998,30]
[349275486,1737093032625,-1162.63548311,0.00024998,30]
[349275487,1737093032639,-7699.52872894,0.00024998,30]
[349275488,1737093032652,-180448.54722338,0.00024998,30]
[349275493,1737093038020,-511.90603702,0.0002496,2]
[349275494,1737093038032,-468.40396298,0.0002496,2]
[349275495,1737093038042,-517.34603854,0.00024998,30]
[349275496,1737093038054,-4677.82886025,0.00024998,30]
[349275497,1737093038077,-1052924.23956035,0.00024998,30]
[349275498,1737093038088,-183.46582188,0.00024999,2]
[349275499,1737093038097,-500.0,0.00024999,2]
[349275500,1737093038107,-647.11277,0.00024999,2]
[349275501,1737093038117,-1484.14,0.00025,7]
[349275502,1737093038127,-160.0,0.00025,2]
[349275503,1737093038136,-163.49804268,0.00025,7]
[349275504,1737093038146,-200.0,0.00025,2]
[349275505,1737093038155,-4594675.02244236,0.00025,30]
[349275506,1737093038167,-22714.42977634,0.00025,30]
[349275507,1737093038179,-312.27156458,0.00025,30]
[349275508,1737093038206,-980.56,0.0002496,2]
[349275509,1737093038216,-5545.50572285,0.00025,30]
[349275510,1737093038228,-457.11191113,0.00025,30]
[349275511,1737093038249,-519.07829482,0.00025,30]
[349275512,1737093038260,-509.55688897,0.00025,30]
[349275513,1737093038272,-50730.0,0.00025,30]
[349275514,1737093038315,-15477.0728,0.00025,30]
[349275515,1737093038326,-757.25070126,0.00025,30]
[349275516,1737093038371,-22403.13360471,0.00025,30]
[349275598,1737093040240,-3795.15533901,0.00025,30]
[349275599,1737093040252,-4927.23480549,0.00025,30]
[349275600,1737093040263,-23685.40208,0.00025,30]
[349275601,1737093040282,-607.46602351,0.00025,30]
[349275602,1737093040294,-211985.00474825,0.00025,30]
[349275603,1737093040387,-441.50639637,0.00025,30]
[349275604,1737093040624,-1533.6670296,0.00025,30]
[349275605,1737093040635,-3966.081876,0.00025,30]
[349275606,1737093040646,-1693.05149831,0.00025,30]
[349275621,1737093043085,-1134.06726596,0.000249,2]
[349275623,1737093043094,-3582.77897044,0.00025,30]
[349275625,1737093043104,-1187.27711577,0.00025,30]
[349275627,1737093043143,-36258.88051778,0.00025,30]
[349275628,1737093043256,-1373.46749305,0.00025,30]
[349275645,1737093043600,-1703265.71039017,0.00025,30]
[349275647,1737093043611,-252.33736637,0.00025,30]
[349275648,1737093043622,-676928.21582926,0.00025,30]
[349275656,1737093046046,-974.41,0.0002496,2]
[349275657,1737093046055,-30665.36275169,0.00025,30]
[349275658,1737093046106,-6700.0,0.00025,30]